[Event "*** Titled Tuesday Blitz"]
[Site "Chess.com"]
[Date "2021.02.09"]
[Round "8"]
[White "mikolka1985"]
[Black "Taran2004"]
[Result "1/2-1/2"]
[WhiteElo "2598"]
[BlackElo "2468"]
[TimeControl "180+1"]
[EndTime "11:29:46 PST"]
[Termination "Game drawn by agreement"]

1. d4 {[%clk 0:03:00.9]} 1... Nf6 {[%clk 0:02:58.7]} 2. c4 {[%clk 0:03:00.2]}
2... g6 {[%clk 0:02:58.4]} 3. Nc3 {[%clk 0:02:59.3]} 3... Bg7 {[%clk 0:02:58.6]}
4. e4 {[%clk 0:02:59.1]} 4... O-O {[%clk 0:02:59.2]} 5. f4 {[%clk 0:02:58.6]}
5... d6 {[%clk 0:02:59.4]} 6. Nf3 {[%clk 0:02:58.3]} 6... c5 {[%clk 0:02:59.5]}
7. dxc5 {[%clk 0:02:57.5]} 7... dxc5 {[%clk 0:02:59.2]} 8. Qxd8 {[%clk
0:02:56.4]} 8... Rxd8 {[%clk 0:03:00.1]} 9. e5 {[%clk 0:02:56.3]} 9... Ne8
{[%clk 0:02:56.7]} 10. Be3 {[%clk 0:02:55.3]} 10... b6 {[%clk 0:02:54.7]} 11.
Nd5 {[%clk 0:02:52.8]} 11... Nc6 {[%clk 0:02:54.3]} 12. O-O-O {[%clk 0:02:52.9]}
12... Bb7 {[%clk 0:02:50.4]} 13. Bd3 {[%clk 0:02:48.4]} 13... e6 {[%clk
0:02:47.7]} 14. Nc3 {[%clk 0:02:47.7]} 14... Nb4 {[%clk 0:02:46.7]} 15. Be2
{[%clk 0:02:46.9]} 15... Nc7 {[%clk 0:02:44.6]} 16. a3 {[%clk 0:02:45.1]} 16...
Nc6 {[%clk 0:02:44.3]} 17. Bf2 {[%clk 0:02:26.5]} 17... Kf8 {[%clk 0:02:27.2]}
18. Bh4 {[%clk 0:02:10.2]} 18... Rxd1+ {[%clk 0:02:21.6]} 19. Rxd1 {[%clk
0:02:06.9]} 19... Nd4 {[%clk 0:02:08.3]} 20. Nxd4 {[%clk 0:02:03.6]} 20... cxd4
{[%clk 0:02:09.2]} 21. Rxd4 {[%clk 0:02:03.1]} 21... Bxg2 {[%clk 0:02:07.8]} 22.
Rd7 {[%clk 0:02:02.7]} 22... Na6 {[%clk 0:02:04.8]} 23. b4 {[%clk 0:02:02.1]}
23... h6 {[%clk 0:02:02.9]} 24. c5 {[%clk 0:01:58.9]} 24... g5 {[%clk
0:01:53.2]} 25. Bxa6 {[%clk 0:01:31.7]} 25... gxh4 {[%clk 0:01:52.3]} 26. Bb7
{[%clk 0:01:31.7]} 26... Bxb7 {[%clk 0:01:50]} 27. Rxb7 {[%clk 0:01:31]} 27...
bxc5 {[%clk 0:01:48.4]} 28. bxc5 {[%clk 0:01:30.4]} 28... Rc8 {[%clk 0:01:37.4]}
29. Ne4 {[%clk 0:01:30]} 29... Kg8 {[%clk 0:01:37.5]} 30. Kd2 {[%clk 0:01:26.5]}
30... Bf8 {[%clk 0:01:37.4]} 31. Nd6 {[%clk 0:01:07.2]} 31... Rxc5 {[%clk
0:01:34.5]} 32. Nxf7 {[%clk 0:01:06.8]} 32... Ra5 {[%clk 0:01:18.2]} 33. Nd8
{[%clk 0:01:06.1]} 33... Ra6 {[%clk 0:01:18]} 34. Rb8 {[%clk 0:00:57.8]} 34...
Kg7 {[%clk 0:01:08.6]} 35. Rb7+ {[%clk 0:00:56.5]} 35... Kg8 {[%clk 0:01:06.9]}
36. a4 {[%clk 0:00:56.2]} 36... h5 {[%clk 0:01:02.4]} 37. Kc2 {[%clk 0:00:55.4]}
37... Bh6 {[%clk 0:00:59.1]} 38. Rf7 {[%clk 0:00:51.3]} 38... Rxa4 {[%clk
0:00:51.9]} 39. f5 {[%clk 0:00:49.6]} 39... Rd4 {[%clk 0:00:36]} 40. Rf6 {[%clk
0:00:45.1]} 40... Rxd8 {[%clk 0:00:25]} 41. Rxh6 {[%clk 0:00:43.7]} 41... exf5
{[%clk 0:00:24.8]} 42. Rxh5 {[%clk 0:00:40.2]} 42... Kf7 {[%clk 0:00:22.3]} 43.
Rxf5+ {[%clk 0:00:38.1]} 43... Ke6 {[%clk 0:00:20.3]} 44. Rh5 {[%clk 0:00:38.4]}
44... Rd5 {[%clk 0:00:19.8]} 45. Rxh4 {[%clk 0:00:37.3]} 45... Rxe5 {[%clk
0:00:20]} 46. Kd3 {[%clk 0:00:32.2]} 46... Kf6 {[%clk 0:00:19.7]} 47. Rg4 {[%clk
0:00:28.5]} 47... Rg5 {[%clk 0:00:19.4]} 48. Ra4 {[%clk 0:00:26.7]} 48... Rh5
{[%clk 0:00:18.6]} 49. h4 {[%clk 0:00:24.4]} 49... a5 {[%clk 0:00:17.7]} 50. Ke3
{[%clk 0:00:24.2]} 50... Kg6 {[%clk 0:00:17.2]} 51. Kf3 {[%clk 0:00:24.3]} 51...
Rb5 {[%clk 0:00:17.2]} 52. Kg3 {[%clk 0:00:23.7]} 52... Rb3+ {[%clk 0:00:17.4]}
53. Kh2 {[%clk 0:00:23.1]} 53... Rb4 {[%clk 0:00:17.6]} 54. Rxa5 {[%clk
0:00:19.9]} 54... Rxh4+ {[%clk 0:00:17.5]} 1/2-1/2

[Event "*** Titled Tuesday Blitz"]
[Site "Chess.com"]
[Date "2021.02.09"]
[Round "8"]
[White "Witik"]
[Black "Happy1712Drummer"]
[Result "1-0"]
[WhiteElo "2716"]
[BlackElo "2412"]
[TimeControl "180+1"]
[EndTime "11:29:47 PST"]
[Termination "Witik won by checkmate"]

1. d4 {[%clk 0:02:57.6]} 1... Nf6 {[%clk 0:02:52.2]} 2. Bf4 {[%clk 0:02:57.1]}
2... g6 {[%clk 0:02:50.9]} 3. Nf3 {[%clk 0:02:56.8]} 3... Bg7 {[%clk 0:02:50.8]}
4. Nc3 {[%clk 0:02:56.4]} 4... d5 {[%clk 0:02:36.9]} 5. e3 {[%clk 0:02:56.1]}
5... O-O {[%clk 0:02:31.4]} 6. Be2 {[%clk 0:02:55.9]} 6... c5 {[%clk 0:02:30.2]}
7. dxc5 {[%clk 0:02:56]} 7... Na6 {[%clk 0:02:29]} 8. Bxa6 {[%clk 0:02:54.7]}
8... bxa6 {[%clk 0:02:28.7]} 9. Be5 {[%clk 0:02:55.3]} 9... Bb7 {[%clk
0:02:21.6]} 10. b4 {[%clk 0:02:47.3]} 10... Rc8 {[%clk 0:02:19.4]} 11. O-O
{[%clk 0:02:44.1]} 11... a5 {[%clk 0:01:57.7]} 12. a3 {[%clk 0:02:42.8]} 12...
Bh6 {[%clk 0:01:47.9]} 13. Bxf6 {[%clk 0:02:39]} 13... exf6 {[%clk 0:01:46.5]}
14. Nd4 {[%clk 0:02:36]} 14... f5 {[%clk 0:01:41]} 15. Ncb5 {[%clk 0:02:33.7]}
15... Ba6 {[%clk 0:01:34.9]} 16. Re1 {[%clk 0:02:18.8]} 16... Qe7 {[%clk
0:01:20.1]} 17. Nd6 {[%clk 0:02:15.2]} 17... Rc7 {[%clk 0:01:09.9]} 18. Qf3
{[%clk 0:01:56.4]} 18... Bg7 {[%clk 0:00:59.2]} 19. Qxd5 {[%clk 0:01:52.3]}
19... Rd8 {[%clk 0:00:57.3]} 20. Nc6 {[%clk 0:01:48.3]} 20... Rxc6 {[%clk
0:00:34.5]} 21. Qxc6 {[%clk 0:01:49.2]} 21... Bxa1 {[%clk 0:00:34.4]} 22. Rxa1
{[%clk 0:01:33]} 22... Qf6 {[%clk 0:00:30.1]} 23. Rb1 {[%clk 0:01:09.3]} 23...
Bc4 {[%clk 0:00:28]} 24. h3 {[%clk 0:01:00.6]} 24... Ba2 {[%clk 0:00:26.6]} 25.
Rf1 {[%clk 0:00:58.2]} 25... Bc4 {[%clk 0:00:22.6]} 26. Rb1 {[%clk 0:00:54.1]}
26... Ba2 {[%clk 0:00:22.1]} 27. Rd1 {[%clk 0:00:53.2]} 27... Qb2 {[%clk
0:00:12.1]} 28. Qc7 {[%clk 0:00:47.2]} 28... Rf8 {[%clk 0:00:11.6]} 29. Qxa5
{[%clk 0:00:29]} 29... Qxc2 {[%clk 0:00:11.1]} 30. Rf1 {[%clk 0:00:29.2]} 30...
Bd5 {[%clk 0:00:10.2]} 31. Qxa7 {[%clk 0:00:27.1]} 31... f4 {[%clk 0:00:09.9]}
32. exf4 {[%clk 0:00:26.2]} 32... Qc3 {[%clk 0:00:08.6]} 33. b5 {[%clk
0:00:17.4]} 33... Ra8 {[%clk 0:00:08.3]} 34. Qc7 {[%clk 0:00:15.7]} 34... Rxa3
{[%clk 0:00:09.2]} 35. b6 {[%clk 0:00:12]} 35... Ra1 {[%clk 0:00:08.6]} 36. Rxa1
{[%clk 0:00:08.9]} 36... Qxa1+ {[%clk 0:00:08.2]} 37. Kh2 {[%clk 0:00:09.6]}
37... Qc1 {[%clk 0:00:07.9]} 38. Qd8+ {[%clk 0:00:08.3]} 38... Kg7 {[%clk
0:00:08]} 39. Qg5 {[%clk 0:00:08.3]} 39... Qxc5 {[%clk 0:00:06.8]} 40. Qe5+
{[%clk 0:00:08.4]} 40... f6 {[%clk 0:00:06.6]} 41. Qe7+ {[%clk 0:00:07.8]} 41...
Kh6 {[%clk 0:00:06.6]} 42. b7 {[%clk 0:00:07.9]} 42... Qxf2 {[%clk 0:00:05.4]}
43. Nf5+ {[%clk 0:00:02.7]} 43... gxf5 {[%clk 0:00:04.4]} 44. Qxf6+ {[%clk
0:00:02.9]} 44... Kh5 {[%clk 0:00:04.7]} 45. Qxf5+ {[%clk 0:00:03.5]} 45... Kh6
{[%clk 0:00:04.6]} 46. Qg5# {[%clk 0:00:03.9]} 1-0

[Event "*** Titled Tuesday Blitz"]
[Site "Chess.com"]
[Date "2021.02.09"]
[Round "8"]
[White "verdest"]
[Black "Kiborg95"]
[Result "1-0"]
[WhiteElo "2516"]
[BlackElo "2706"]
[TimeControl "180+1"]
[EndTime "11:29:50 PST"]
[Termination "verdest won by resignation"]

1. d4 {[%clk 0:03:00.9]} 1... d6 {[%clk 0:02:59.1]} 2. e4 {[%clk 0:02:59.8]}
2... Nf6 {[%clk 0:02:57.9]} 3. Nc3 {[%clk 0:02:58.6]} 3... e5 {[%clk 0:02:58.6]}
4. Nf3 {[%clk 0:02:57.9]} 4... Nbd7 {[%clk 0:02:59]} 5. g4 {[%clk 0:02:58.2]}
5... Nxg4 {[%clk 0:02:58.7]} 6. Rg1 {[%clk 0:02:56.7]} 6... Ngf6 {[%clk
0:02:59.2]} 7. Bc4 {[%clk 0:02:56.8]} 7... exd4 {[%clk 0:02:55.3]} 8. Nxd4
{[%clk 0:02:50.6]} 8... Nb6 {[%clk 0:02:55.2]} 9. Bb3 {[%clk 0:02:49.1]} 9... c5
{[%clk 0:02:55.2]} 10. Nde2 {[%clk 0:01:41.7]} 10... c4 {[%clk 0:02:54.9]} 11.
Ba4+ {[%clk 0:01:41.8]} 11... Nxa4 {[%clk 0:02:52.4]} 12. Nxa4 {[%clk
0:01:42.7]} 12... Qa5+ {[%clk 0:02:49.9]} 13. Nac3 {[%clk 0:01:42.1]} 13... Nxe4
{[%clk 0:02:45.9]} 14. Bf4 {[%clk 0:01:42]} 14... Be6 {[%clk 0:02:15.8]} 15. Qd4
{[%clk 0:01:40]} 15... Nxc3 {[%clk 0:02:06.6]} 16. Nxc3 {[%clk 0:01:40.9]} 16...
Qc5 {[%clk 0:02:06.2]} 17. Qxc5 {[%clk 0:01:34.5]} 17... dxc5 {[%clk 0:02:07.1]}
18. O-O-O {[%clk 0:01:34.5]} 18... a6 {[%clk 0:02:01.1]} 19. Nd5 {[%clk
0:01:17.5]} 19... Rc8 {[%clk 0:01:53.3]} 20. Rge1 {[%clk 0:01:06.8]} 20... Be7
{[%clk 0:01:48.2]} 21. Nc7+ {[%clk 0:01:06.2]} 21... Rxc7 {[%clk 0:01:47.8]} 22.
Bxc7 {[%clk 0:01:07.1]} 22... h5 {[%clk 0:01:24.3]} 23. Bd6 {[%clk 0:01:04.2]}
23... Rh6 {[%clk 0:01:13]} 24. Bxe7 {[%clk 0:01:02.5]} 24... Kxe7 {[%clk
0:01:13.9]} 25. Re5 {[%clk 0:01:02.5]} 25... b6 {[%clk 0:01:10.8]} 26. f4 {[%clk
0:01:02.3]} 26... Rf6 {[%clk 0:01:05.6]} 27. Rf1 {[%clk 0:01:00.5]} 27... Rf5
{[%clk 0:00:51.5]} 28. Rxf5 {[%clk 0:00:56]} 28... Bxf5 {[%clk 0:00:52.4]} 29.
Kd2 {[%clk 0:00:56.6]} 29... Kd6 {[%clk 0:00:49.2]} 30. Re1 {[%clk 0:00:52.8]}
30... Be6 {[%clk 0:00:49]} 31. a4 {[%clk 0:00:48.1]} 31... g6 {[%clk 0:00:48.2]}
32. Kc3 {[%clk 0:00:46.6]} 32... b5 {[%clk 0:00:47]} 33. axb5 {[%clk 0:00:44.5]}
33... axb5 {[%clk 0:00:47.9]} 34. Ra1 {[%clk 0:00:36.3]} 34... Kd5 {[%clk
0:00:43.8]} 35. Re1 {[%clk 0:00:31.3]} 35... f6 {[%clk 0:00:43.4]} 36. Kd2
{[%clk 0:00:30.2]} 36... g5 {[%clk 0:00:33.1]} 37. Ke3 {[%clk 0:00:29.9]} 37...
g4 {[%clk 0:00:27.9]} 38. Rd1+ {[%clk 0:00:29.3]} 38... Kc6 {[%clk 0:00:27.9]}
39. Rd8 {[%clk 0:00:29.1]} 39... Bf5 {[%clk 0:00:27.1]} 40. c3 {[%clk
0:00:28.5]} 40... Bd3 {[%clk 0:00:17.5]} 41. Rh8 {[%clk 0:00:23.6]} 41... f5
{[%clk 0:00:16.8]} 42. Rxh5 {[%clk 0:00:23.3]} 42... Kd5 {[%clk 0:00:17]} 43.
Rh6 {[%clk 0:00:22.9]} 43... b4 {[%clk 0:00:17.1]} 44. Rb6 {[%clk 0:00:20.5]}
44... b3 {[%clk 0:00:17.2]} 45. Rf6 {[%clk 0:00:19.1]} 45... Be4 {[%clk
0:00:17.4]} 46. Rg6 {[%clk 0:00:17.6]} 46... Bd3 {[%clk 0:00:17.7]} 47. Rh6
{[%clk 0:00:16.6]} 47... Be4 {[%clk 0:00:18.1]} 48. Rh5 {[%clk 0:00:12.1]} 48...
Bd3 {[%clk 0:00:17.7]} 49. h3 {[%clk 0:00:12.4]} 49... gxh3 {[%clk 0:00:18.5]}
50. Rxh3 {[%clk 0:00:13.2]} 50... Be4 {[%clk 0:00:19.4]} 51. Rh5 {[%clk
0:00:13.2]} 51... Bd3 {[%clk 0:00:19.5]} 52. Rg5 {[%clk 0:00:13.6]} 52... Be4
{[%clk 0:00:19.9]} 53. Rg6 {[%clk 0:00:14]} 53... Bd3 {[%clk 0:00:20.5]} 54. Rg7
{[%clk 0:00:14.2]} 54... Be4 {[%clk 0:00:21.1]} 55. Re7 {[%clk 0:00:14.2]} 55...
Bd3 {[%clk 0:00:20.6]} 56. Re8 {[%clk 0:00:14.2]} 56... Be4 {[%clk 0:00:20.8]}
57. Re5+ {[%clk 0:00:12.8]} 57... Kd6 {[%clk 0:00:20.8]} 58. Rxe4 {[%clk
0:00:13]} 58... fxe4 {[%clk 0:00:21.7]} 59. Kxe4 {[%clk 0:00:13.9]} 1-0

[Event "*** Titled Tuesday Blitz"]
[Site "Chess.com"]
[Date "2021.02.09"]
[Round "8"]
[White "Jungle_Jaguar"]
[Black "Angry_Twin"]
[Result "0-1"]
[WhiteElo "2646"]
[BlackElo "2839"]
[TimeControl "180+1"]
[EndTime "11:29:52 PST"]
[Termination "Angry_Twin won by resignation"]

1. b3 {[%clk 0:03:00.9]} 1... e5 {[%clk 0:02:57]} 2. Bb2 {[%clk 0:03:00.8]} 2...
Nc6 {[%clk 0:02:57.6]} 3. e3 {[%clk 0:02:56.9]} 3... g6 {[%clk 0:02:57.6]} 4. d4
{[%clk 0:02:54.2]} 4... Bg7 {[%clk 0:02:55.5]} 5. d5 {[%clk 0:02:52.1]} 5...
Nce7 {[%clk 0:02:55.3]} 6. d6 {[%clk 0:02:51.7]} 6... cxd6 {[%clk 0:02:55.6]} 7.
Qxd6 {[%clk 0:02:51.5]} 7... Nf5 {[%clk 0:02:56]} 8. Qd2 {[%clk 0:02:50.9]} 8...
d6 {[%clk 0:02:44.5]} 9. Nf3 {[%clk 0:02:43.6]} 9... Nf6 {[%clk 0:02:44.3]} 10.
c4 {[%clk 0:02:19.5]} 10... O-O {[%clk 0:02:30.2]} 11. Nc3 {[%clk 0:02:19.3]}
11... b6 {[%clk 0:02:27.9]} 12. Be2 {[%clk 0:02:18.5]} 12... Bb7 {[%clk
0:02:27.9]} 13. O-O {[%clk 0:02:18.4]} 13... Ne4 {[%clk 0:02:26.6]} 14. Nxe4
{[%clk 0:02:15.6]} 14... Bxe4 {[%clk 0:02:27.5]} 15. Rfd1 {[%clk 0:02:16]} 15...
Rc8 {[%clk 0:02:22.3]} 16. Ba3 {[%clk 0:02:15.2]} 16... Re8 {[%clk 0:02:20.1]}
17. Rac1 {[%clk 0:01:57.4]} 17... Qf6 {[%clk 0:02:17.5]} 18. Ne1 {[%clk
0:01:51.3]} 18... Rcd8 {[%clk 0:02:16.4]} 19. Bf3 {[%clk 0:01:47.2]} 19... Bxf3
{[%clk 0:02:13]} 20. Nxf3 {[%clk 0:01:48.1]} 20... e4 {[%clk 0:02:08.7]} 21. Ne1
{[%clk 0:01:19.8]} 21... Qg5 {[%clk 0:02:02.9]} 22. Bb2 {[%clk 0:01:09.8]} 22...
Nh4 {[%clk 0:01:48.4]} 23. Bxg7 {[%clk 0:01:09.2]} 23... Kxg7 {[%clk 0:01:48.6]}
24. Qb2+ {[%clk 0:01:04]} 24... Re5 {[%clk 0:01:39.1]} 25. Rd5 {[%clk
0:01:00.4]} 25... Nf3+ {[%clk 0:01:38.8]} 26. Nxf3 {[%clk 0:00:58]} 26... exf3
{[%clk 0:01:38.8]} 27. g3 {[%clk 0:00:58.6]} 27... Qf5 {[%clk 0:01:38.8]} 28.
Kh1 {[%clk 0:00:39.1]} 28... f6 {[%clk 0:01:24]} 29. Rd4 {[%clk 0:00:38.2]}
29... Qh3 {[%clk 0:01:20]} 30. Rg1 {[%clk 0:00:38.4]} 30... Rh5 {[%clk
0:01:19.7]} 31. Rh4 {[%clk 0:00:34.6]} 31... Rxh4 {[%clk 0:01:19.9]} 32. gxh4
{[%clk 0:00:35.3]} 32... Qxh4 {[%clk 0:01:20.5]} 33. Rg3 {[%clk 0:00:34.5]}
33... Qe4 {[%clk 0:01:20.2]} 34. Qc1 {[%clk 0:00:27.4]} 34... d5 {[%clk
0:01:19.9]} 35. Qd1 {[%clk 0:00:26.1]} 35... g5 {[%clk 0:01:16.2]} 36. cxd5
{[%clk 0:00:25.8]} 36... Rxd5 {[%clk 0:01:15]} 37. Qxf3 {[%clk 0:00:25.9]} 37...
Qxf3+ {[%clk 0:01:10.9]} 38. Rxf3 {[%clk 0:00:26]} 38... Rd2 {[%clk 0:01:11.4]}
39. a4 {[%clk 0:00:25.3]} 39... Rd3 {[%clk 0:01:10.6]} 40. b4 {[%clk 0:00:23.5]}
40... Rb3 {[%clk 0:01:10.8]} 41. a5 {[%clk 0:00:22.7]} 41... Rxb4 {[%clk
0:01:10.8]} 42. axb6 {[%clk 0:00:22.7]} 42... axb6 {[%clk 0:01:11.2]} 43. Kg2
{[%clk 0:00:22.6]} 43... Kg6 {[%clk 0:01:10.4]} 44. h3 {[%clk 0:00:20.3]} 44...
Rc4 {[%clk 0:01:10.1]} 45. Rg3 {[%clk 0:00:08.5]} 45... b5 {[%clk 0:01:10]} 46.
Kf3 {[%clk 0:00:08.1]} 46... b4 {[%clk 0:01:09.9]} 47. Rg1 {[%clk 0:00:08.6]}
47... b3 {[%clk 0:01:09.5]} 48. Rb1 {[%clk 0:00:09.2]} 48... Rb4 {[%clk
0:01:10]} 49. Rb2 {[%clk 0:00:08.2]} 49... Kf5 {[%clk 0:01:10.3]} 50. Ke2 {[%clk
0:00:07.8]} 50... g4 {[%clk 0:01:08.5]} 51. hxg4+ {[%clk 0:00:06.4]} 51... Kxg4
{[%clk 0:01:08.7]} 52. f3+ {[%clk 0:00:06.7]} 52... Kg3 {[%clk 0:01:08.7]} 53.
f4 {[%clk 0:00:06.5]} 53... h5 {[%clk 0:01:08.9]} 54. Kd3 {[%clk 0:00:07]} 54...
h4 {[%clk 0:01:09.3]} 55. Kc3 {[%clk 0:00:07.5]} 55... Rb8 {[%clk 0:01:09.4]}
56. e4 {[%clk 0:00:08]} 56... h3 {[%clk 0:01:09.2]} 57. e5 {[%clk 0:00:08.3]}
57... fxe5 {[%clk 0:01:09.8]} 58. fxe5 {[%clk 0:00:09.2]} 58... h2 {[%clk
0:01:10.4]} 59. Rb1 {[%clk 0:00:08.7]} 59... b2 {[%clk 0:01:05.1]} 60. e6 {[%clk
0:00:07.9]} 60... Kg2 {[%clk 0:01:05.5]} 61. e7 {[%clk 0:00:08.2]} 61... h1=Q
{[%clk 0:01:04.8]} 62. Rxb2+ {[%clk 0:00:07.7]} 62... Rxb2 {[%clk 0:01:00.4]}
63. Kxb2 {[%clk 0:00:07.9]} 63... Qe1 {[%clk 0:00:59.9]} 64. e8=Q {[%clk
0:00:06.8]} 64... Qxe8 {[%clk 0:01:00.8]} 65. Ka3 {[%clk 0:00:06.2]} 65... Kf3
{[%clk 0:01:01.7]} 66. Kb4 {[%clk 0:00:06.5]} 66... Qc6 {[%clk 0:01:02.3]} 0-1

[Event "*** Titled Tuesday Blitz"]
[Site "Chess.com"]
[Date "2021.02.09"]
[Round "8"]
[White "Kotofeyca"]
[Black "GianmarcoVaR"]
[Result "0-1"]
[WhiteElo "2441"]
[BlackElo "2581"]
[TimeControl "180+1"]
[EndTime "11:29:52 PST"]
[Termination "GianmarcoVaR won by checkmate"]

1. d4 {[%clk 0:03:00.9]} 1... Nf6 {[%clk 0:02:55.5]} 2. c4 {[%clk 0:03:01]} 2...
e6 {[%clk 0:02:52.1]} 3. Nf3 {[%clk 0:03:01]} 3... b6 {[%clk 0:02:50.2]} 4. g3
{[%clk 0:03:00.9]} 4... Ba6 {[%clk 0:02:49.6]} 5. Qa4 {[%clk 0:03:00.9]} 5... c5
{[%clk 0:02:41.6]} 6. Bg2 {[%clk 0:03:00.3]} 6... Bb7 {[%clk 0:02:41.2]} 7. dxc5
{[%clk 0:03:00.2]} 7... bxc5 {[%clk 0:02:41.5]} 8. Nc3 {[%clk 0:03:00.7]} 8...
Be7 {[%clk 0:02:41]} 9. O-O {[%clk 0:03:01.2]} 9... O-O {[%clk 0:02:40.9]} 10.
Rd1 {[%clk 0:03:01.6]} 10... d6 {[%clk 0:02:40.5]} 11. Bf4 {[%clk 0:03:01.5]}
11... Qb6 {[%clk 0:02:40.3]} 12. Rd2 {[%clk 0:03:01.5]} 12... Rd8 {[%clk
0:02:30.1]} 13. Rad1 {[%clk 0:03:01]} 13... Na6 {[%clk 0:02:24.6]} 14. Qb5
{[%clk 0:02:53.6]} 14... Ne8 {[%clk 0:02:16.8]} 15. Qxb6 {[%clk 0:02:33.7]}
15... axb6 {[%clk 0:02:16.9]} 16. Nb5 {[%clk 0:02:29.8]} 16... e5 {[%clk
0:01:15.6]} 17. Bg5 {[%clk 0:02:09.9]} 17... f6 {[%clk 0:01:10]} 18. Be3 {[%clk
0:02:09.7]} 18... Nac7 {[%clk 0:00:41]} 19. Nc3 {[%clk 0:02:00.3]} 19... Ne6
{[%clk 0:00:40.3]} 20. Nh4 {[%clk 0:01:52]} 20... Bxg2 {[%clk 0:00:39.5]} 21.
Kxg2 {[%clk 0:01:47.1]} 21... N8c7 {[%clk 0:00:38.8]} 22. Nf5 {[%clk 0:01:41.9]}
22... Kf7 {[%clk 0:00:32.9]} 23. g4 {[%clk 0:01:40.9]} 23... Nd4 {[%clk
0:00:27.5]} 24. a3 {[%clk 0:01:25.3]} 24... g6 {[%clk 0:00:27.7]} 25. Ng3 {[%clk
0:01:24.9]} 25... Ke6 {[%clk 0:00:26.1]} 26. f3 {[%clk 0:01:22.9]} 26... f5
{[%clk 0:00:20.5]} 27. Bf2 {[%clk 0:01:20.4]} 27... Nb3 {[%clk 0:00:20.6]} 28.
Rc2 {[%clk 0:01:15.5]} 28... Ra5 {[%clk 0:00:19.3]} 29. e3 {[%clk 0:01:10.1]}
29... b5 {[%clk 0:00:14.3]} 30. Be1 {[%clk 0:00:47.6]} 30... bxc4 {[%clk
0:00:13.6]} 31. Nb1 {[%clk 0:00:39.1]} 31... Ra4 {[%clk 0:00:12.9]} 32. e4
{[%clk 0:00:37.8]} 32... fxg4 {[%clk 0:00:10.2]} 33. fxg4 {[%clk 0:00:37.9]}
33... Nd4 {[%clk 0:00:10.3]} 34. Rc3 {[%clk 0:00:35.9]} 34... Rb8 {[%clk
0:00:09.9]} 35. Rd2 {[%clk 0:00:34.1]} 35... Bg5 {[%clk 0:00:08.6]} 36. Rf2
{[%clk 0:00:32.9]} 36... Ncb5 {[%clk 0:00:07.1]} 37. Rcf3 {[%clk 0:00:18.6]}
37... Nxf3 {[%clk 0:00:06.9]} 38. Rxf3 {[%clk 0:00:19.2]} 38... Nd4 {[%clk
0:00:07.6]} 39. Bc3 {[%clk 0:00:19.8]} 39... Nxf3 {[%clk 0:00:07.3]} 40. Kxf3
{[%clk 0:00:19.5]} 40... Bc1 {[%clk 0:00:07.5]} 41. Ne2 {[%clk 0:00:15.6]} 41...
Bxb2 {[%clk 0:00:08]} 42. Bd2 {[%clk 0:00:16.1]} 42... c3 {[%clk 0:00:07.2]} 43.
Nbxc3 {[%clk 0:00:17]} 43... Bxc3 {[%clk 0:00:08.1]} 44. Nxc3 {[%clk 0:00:16.8]}
44... Rxa3 {[%clk 0:00:09]} 45. Ke2 {[%clk 0:00:16.3]} 45... Rb2 {[%clk
0:00:09.5]} 46. Nd5 {[%clk 0:00:17.1]} 46... Raa2 {[%clk 0:00:09.3]} 47. Nc7+
{[%clk 0:00:16.9]} 47... Kd7 {[%clk 0:00:09.7]} 48. Ke3 {[%clk 0:00:17.8]} 48...
Kxc7 {[%clk 0:00:09]} 49. g5 {[%clk 0:00:18.1]} 49... Rxd2 {[%clk 0:00:09]} 50.
h4 {[%clk 0:00:19]} 50... Rh2 {[%clk 0:00:09.2]} 51. Kf3 {[%clk 0:00:19.9]}
51... Rxh4 {[%clk 0:00:09.1]} 52. Kg3 {[%clk 0:00:19.6]} 52... Rxe4 {[%clk
0:00:09.3]} 53. Kf3 {[%clk 0:00:20.5]} 53... Rd4 {[%clk 0:00:09.6]} 54. Kg3
{[%clk 0:00:21.4]} 54... Ra3+ {[%clk 0:00:09.8]} 55. Kf2 {[%clk 0:00:21.4]}
55... Rd2+ {[%clk 0:00:10.7]} 56. Ke1 {[%clk 0:00:22.3]} 56... Rb2 {[%clk
0:00:11.6]} 57. Kd1 {[%clk 0:00:22.6]} 57... Ra1# {[%clk 0:00:12.5]} 0-1